[Event "*** SCC Grand Prix: Titled Tuesday Blitz"]
[Site "Chess.com"]
[Date "2020.07.07"]
[Round "9"]
[White "RitvarsReimanis"]
[Black "KuzubovYuriy"]
[Result "0-1"]
[WhiteElo "2565"]
[BlackElo "2833"]
[TimeControl "180+1"]
[EndTime "11:46:23 PDT"]
[Termination "KuzubovYuriy won by resignation"]

1. d4 {[%clk 0:02:59.3]} 1... Nf6 {[%clk 0:02:58.8]} 2. c4 {[%clk 0:02:59.6]}
2... e6 {[%clk 0:02:57.6]} 3. Nf3 {[%clk 0:02:59.3]} 3... d5 {[%clk 0:02:57]} 4.
Nc3 {[%clk 0:02:59.3]} 4... Nbd7 {[%clk 0:02:56.1]} 5. Bf4 {[%clk 0:02:58]} 5...
dxc4 {[%clk 0:02:55.7]} 6. e3 {[%clk 0:02:57.7]} 6... Nd5 {[%clk 0:02:53.9]} 7.
Bxc4 {[%clk 0:02:55.4]} 7... Nxf4 {[%clk 0:02:54]} 8. exf4 {[%clk 0:02:56.3]}
8... Nb6 {[%clk 0:02:54.2]} 9. Bd3 {[%clk 0:02:55.5]} 9... g6 {[%clk 0:02:47.9]}
10. h4 {[%clk 0:02:54.4]} 10... Bg7 {[%clk 0:02:47]} 11. h5 {[%clk 0:02:53.1]}
11... Bd7 {[%clk 0:02:43.7]} 12. Ne5 {[%clk 0:02:43.7]} 12... Qe7 {[%clk
0:02:32.7]} 13. hxg6 {[%clk 0:02:15.4]} 13... hxg6 {[%clk 0:02:32]} 14. Rxh8+
{[%clk 0:02:15.9]} 14... Bxh8 {[%clk 0:02:32.6]} 15. Qf3 {[%clk 0:02:08.1]}
15... O-O-O {[%clk 0:02:24.9]} 16. Be4 {[%clk 0:02:03.2]} 16... c6 {[%clk
0:02:24.7]} 17. O-O-O {[%clk 0:02:00]} 17... Be8 {[%clk 0:02:13.9]} 18. Rh1
{[%clk 0:01:37]} 18... Bg7 {[%clk 0:02:00.1]} 19. Rh7 {[%clk 0:01:34.2]} 19...
Qf8 {[%clk 0:01:58.6]} 20. Qe3 {[%clk 0:01:20.7]} 20... Kb8 {[%clk 0:01:51.2]}
21. g3 {[%clk 0:01:16.8]} 21... Nc8 {[%clk 0:01:43.6]} 22. Bg2 {[%clk
0:01:04.7]} 22... Nd6 {[%clk 0:01:41]} 23. g4 {[%clk 0:00:55.5]} 23... f6 {[%clk
0:00:48.1]} 24. Nf3 {[%clk 0:00:54.5]} 24... Bf7 {[%clk 0:00:39.9]} 25. Qd3
{[%clk 0:00:41.5]} 25... Nc8 {[%clk 0:00:18.4]} 26. Qe3 {[%clk 0:00:35.8]} 26...
Nb6 {[%clk 0:00:17]} 27. Nd2 {[%clk 0:00:35.1]} 27... f5 {[%clk 0:00:16.2]} 28.
gxf5 {[%clk 0:00:28.9]} 28... Bxd4 {[%clk 0:00:15.6]} 29. Qh3 {[%clk 0:00:20.8]}
29... exf5 {[%clk 0:00:15.3]} 30. Qh4 {[%clk 0:00:20.9]} 30... Bxc3 {[%clk
0:00:14.9]} 31. bxc3 {[%clk 0:00:21.8]} 31... Qa3+ {[%clk 0:00:14.4]} 32. Kc2
{[%clk 0:00:21.6]} 32... Qxa2+ {[%clk 0:00:14.5]} 33. Kc1 {[%clk 0:00:19.6]}
33... Qxd2+ {[%clk 0:00:15]} 34. Kb1 {[%clk 0:00:19.8]} 34... Qa2+ {[%clk
0:00:15.3]} 35. Kc1 {[%clk 0:00:19.6]} 35... Qa1+ {[%clk 0:00:15.4]} 36. Kc2
{[%clk 0:00:19.1]} 36... Qd1+ {[%clk 0:00:15.2]} 0-1

[Event "*** SCC Grand Prix: Titled Tuesday Blitz"]
[Site "Chess.com"]
[Date "2020.07.07"]
[Round "9"]
[White "sewin16"]
[Black "tylityli"]
[Result "0-1"]
[WhiteElo "2398"]
[BlackElo "2208"]
[TimeControl "180+1"]
[EndTime "11:46:23 PDT"]
[Termination "tylityli won by resignation"]

1. e4 {[%clk 0:03:00.9]} 1... e5 {[%clk 0:02:57]} 2. Nf3 {[%clk 0:03:00.3]} 2...
Nc6 {[%clk 0:02:56.8]} 3. d4 {[%clk 0:02:58.9]} 3... exd4 {[%clk 0:02:56.4]} 4.
Bc4 {[%clk 0:02:59]} 4... Nf6 {[%clk 0:02:55.6]} 5. e5 {[%clk 0:02:58.5]} 5...
d5 {[%clk 0:02:53.7]} 6. Bb5 {[%clk 0:02:58.5]} 6... Ne4 {[%clk 0:02:53.2]} 7.
Nxd4 {[%clk 0:02:58.1]} 7... Bd7 {[%clk 0:02:53.5]} 8. Bxc6 {[%clk 0:02:57.1]}
8... bxc6 {[%clk 0:02:53.1]} 9. O-O {[%clk 0:02:57.5]} 9... Bc5 {[%clk
0:02:52.8]} 10. f3 {[%clk 0:02:57.4]} 10... Ng5 {[%clk 0:02:52]} 11. f4 {[%clk
0:02:56.8]} 11... Ne4 {[%clk 0:02:52.2]} 12. Be3 {[%clk 0:02:56.2]} 12... Bb6
{[%clk 0:02:51]} 13. Nd2 {[%clk 0:02:54.5]} 13... Nxd2 {[%clk 0:02:49.4]} 14.
Qxd2 {[%clk 0:02:53]} 14... c5 {[%clk 0:02:49]} 15. Nb3 {[%clk 0:02:52.5]} 15...
d4 {[%clk 0:02:48.7]} 16. Bf2 {[%clk 0:02:52.1]} 16... Bc6 {[%clk 0:02:32.9]}
17. c4 {[%clk 0:02:33.6]} 17... Qd7 {[%clk 0:02:14.5]} 18. f5 {[%clk 0:02:05.5]}
18... O-O-O {[%clk 0:02:02.8]} 19. Qf4 {[%clk 0:01:44]} 19... g6 {[%clk
0:01:48]} 20. f6 {[%clk 0:01:35.6]} 20... Rhe8 {[%clk 0:01:41.2]} 21. Rfe1
{[%clk 0:01:31.1]} 21... h5 {[%clk 0:01:28.8]} 22. Bg3 {[%clk 0:01:19.2]} 22...
Qg4 {[%clk 0:01:25.3]} 23. Qxg4+ {[%clk 0:01:16.6]} 23... hxg4 {[%clk
0:01:26.2]} 24. a4 {[%clk 0:01:13.7]} 24... a5 {[%clk 0:01:25.7]} 25. Re2 {[%clk
0:00:59.1]} 25... d3 {[%clk 0:01:18.7]} 26. Rd2 {[%clk 0:00:51.9]} 26... Be4
{[%clk 0:01:17.1]} 27. Re1 {[%clk 0:00:44.9]} 27... Bf5 {[%clk 0:01:16.3]} 28.
Bf2 {[%clk 0:00:44.4]} 28... Be6 {[%clk 0:01:14.4]} 29. Nxc5 {[%clk 0:00:41.4]}
29... Bxc4 {[%clk 0:01:11.4]} 30. b3 {[%clk 0:00:37.7]} 30... Bxc5 {[%clk
0:00:57]} 31. bxc4 {[%clk 0:00:31.9]} 31... Bb4 {[%clk 0:00:55]} 32. Rdd1 {[%clk
0:00:10.2]} 32... Bxe1 {[%clk 0:00:51.5]} 33. Bxe1 {[%clk 0:00:10.4]} 33... Rxe5
{[%clk 0:00:49.9]} 34. Bc3 {[%clk 0:00:10.4]} 34... Rc5 {[%clk 0:00:45.3]} 35.
Kf2 {[%clk 0:00:10]} 35... Rxc4 {[%clk 0:00:45.4]} 36. Bxa5 {[%clk 0:00:09.9]}
36... Rxa4 {[%clk 0:00:45.5]} 37. Bc3 {[%clk 0:00:09.3]} 37... Ra2+ {[%clk
0:00:45.2]} 38. Kg3 {[%clk 0:00:08.4]} 38... Rc2 {[%clk 0:00:42.6]} 39. Be5
{[%clk 0:00:07.5]} 39... d2 {[%clk 0:00:41.1]} 40. Kxg4 {[%clk 0:00:07.1]} 40...
Rc1 {[%clk 0:00:40.4]} 0-1

[Event "*** SCC Grand Prix: Titled Tuesday Blitz"]
[Site "Chess.com"]
[Date "2020.07.07"]
[Round "9"]
[White "FearNoEvil12"]
[Black "DonPreuss"]
[Result "1/2-1/2"]
[WhiteElo "2054"]
[BlackElo "2173"]
[TimeControl "180+1"]
[EndTime "11:46:25 PDT"]
[Termination "Game drawn - insufficient material"]

1. e4 {[%clk 0:03:00.9]} 1... e5 {[%clk 0:02:52.7]} 2. d4 {[%clk 0:02:58.4]}
2... Nc6 {[%clk 0:02:51.9]} 3. Nf3 {[%clk 0:02:56.6]} 3... exd4 {[%clk
0:02:50.9]} 4. Bc4 {[%clk 0:02:57.1]} 4... d6 {[%clk 0:02:40.5]} 5. Nxd4 {[%clk
0:02:55.8]} 5... Nxd4 {[%clk 0:02:36.6]} 6. Qxd4 {[%clk 0:02:53.5]} 6... Be6
{[%clk 0:02:37.5]} 7. Nc3 {[%clk 0:02:51.9]} 7... Be7 {[%clk 0:02:27]} 8. h3
{[%clk 0:02:49.5]} 8... Nf6 {[%clk 0:02:21.7]} 9. Be3 {[%clk 0:02:48]} 9... O-O
{[%clk 0:02:21.6]} 10. g4 {[%clk 0:02:46.6]} 10... Nd7 {[%clk 0:02:16.6]} 11.
Bb3 {[%clk 0:02:43.6]} 11... Nb6 {[%clk 0:02:12.3]} 12. Bxe6 {[%clk 0:02:34.6]}
12... fxe6 {[%clk 0:02:13.2]} 13. O-O-O {[%clk 0:02:33.9]} 13... e5 {[%clk
0:02:12.9]} 14. Qd3 {[%clk 0:02:32.3]} 14... Qe8 {[%clk 0:02:11.3]} 15. Nd5
{[%clk 0:02:27.5]} 15... Nxd5 {[%clk 0:02:08.1]} 16. Qxd5+ {[%clk 0:02:27.3]}
16... Qf7 {[%clk 0:02:08.3]} 17. Qxf7+ {[%clk 0:02:17.8]} 17... Rxf7 {[%clk
0:02:05.2]} 18. h4 {[%clk 0:02:15.4]} 18... Rf3 {[%clk 0:01:57.9]} 19. Rdg1
{[%clk 0:02:12.7]} 19... a6 {[%clk 0:01:56.2]} 20. Kd2 {[%clk 0:02:11.2]} 20...
Raf8 {[%clk 0:01:55.8]} 21. Ke2 {[%clk 0:02:11.3]} 21... b6 {[%clk 0:01:43]} 22.
g5 {[%clk 0:02:08.6]} 22... d5 {[%clk 0:01:42.9]} 23. exd5 {[%clk 0:02:06.8]}
23... Bc5 {[%clk 0:01:42.9]} 24. Bxc5 {[%clk 0:02:04.4]} 24... bxc5 {[%clk
0:01:41.8]} 25. Rg2 {[%clk 0:02:04.7]} 25... R3f4 {[%clk 0:01:33.5]} 26. b3
{[%clk 0:01:59.2]} 26... c4 {[%clk 0:01:33.1]} 27. Rd1 {[%clk 0:01:56]} 27...
Rxh4 {[%clk 0:01:26.1]} 28. Ke3 {[%clk 0:01:50.8]} 28... Rh3+ {[%clk 0:01:14.6]}
29. Ke2 {[%clk 0:01:48.9]} 29... cxb3 {[%clk 0:01:11.1]} 30. axb3 {[%clk
0:01:47.3]} 30... Rc3 {[%clk 0:01:09.5]} 31. Kd2 {[%clk 0:01:43.3]} 31... Rff3
{[%clk 0:01:08.3]} 32. Re1 {[%clk 0:01:38.8]} 32... Rc5 {[%clk 0:01:00.3]} 33.
Rxe5 {[%clk 0:01:38.1]} 33... Rfc3 {[%clk 0:00:59.4]} 34. Rg1 {[%clk 0:01:26.1]}
34... Rxc2+ {[%clk 0:00:59.5]} 35. Ke3 {[%clk 0:01:26.1]} 35... R5c3+ {[%clk
0:00:50]} 36. Kd4 {[%clk 0:01:25.8]} 36... Rxb3 {[%clk 0:00:50.2]} 37. Ra1
{[%clk 0:01:24.2]} 37... Rxf2 {[%clk 0:00:45]} 38. Rxa6 {[%clk 0:01:20.3]} 38...
Rf4+ {[%clk 0:00:35.4]} 39. Kc5 {[%clk 0:01:18.2]} 39... Rc3+ {[%clk 0:00:34]}
40. Kb5 {[%clk 0:01:17.9]} 40... Kf7 {[%clk 0:00:33.4]} 41. Rc6 {[%clk
0:01:13.6]} 41... Rxc6 {[%clk 0:00:32.3]} 42. Kxc6 {[%clk 0:01:12.9]} 42... Rc4+
{[%clk 0:00:32.1]} 43. Kd7 {[%clk 0:01:12.5]} 43... Kg6 {[%clk 0:00:31.4]} 44.
Ke6 {[%clk 0:01:07.4]} 44... h5 {[%clk 0:00:31.3]} 45. gxh6 {[%clk 0:01:05.8]}
45... gxh6 {[%clk 0:00:31.6]} 46. Re1 {[%clk 0:01:04.8]} 46... h5 {[%clk
0:00:30.8]} 47. Rg1+ {[%clk 0:01:03.6]} 47... Rg4 {[%clk 0:00:27.6]} 48. Rc1
{[%clk 0:00:57]} 48... h4 {[%clk 0:00:20.7]} 49. Rxc7 {[%clk 0:00:54.8]} 49...
h3 {[%clk 0:00:20.8]} 50. Rc1 {[%clk 0:00:53.9]} 50... Kg5 {[%clk 0:00:20.4]}
51. Rh1 {[%clk 0:00:52.8]} 51... Kh4 {[%clk 0:00:20]} 52. d6 {[%clk 0:00:53.1]}
52... Rd4 {[%clk 0:00:20.1]} 53. d7 {[%clk 0:00:52.7]} 53... Kg3 {[%clk
0:00:19.8]} 54. Ke7 {[%clk 0:00:51.6]} 54... Kg2 {[%clk 0:00:19.4]} 55. Rxh3
{[%clk 0:00:50.1]} 55... Kxh3 {[%clk 0:00:18.4]} 56. d8=Q {[%clk 0:00:50.5]}
56... Rxd8 {[%clk 0:00:18]} 57. Kxd8 {[%clk 0:00:51]} 1/2-1/2

[Event "*** SCC Grand Prix: Titled Tuesday Blitz"]
[Site "Chess.com"]
[Date "2020.07.07"]
[Round "9"]
[White "m_ezat"]
[Black "DishonorOnYourCow"]
[Result "0-1"]
[WhiteElo "2509"]
[BlackElo "2350"]
[TimeControl "180+1"]
[EndTime "11:46:26 PDT"]
[Termination "DishonorOnYourCow won by checkmate"]

1. e4 {[%clk 0:02:48.2]} 1... e5 {[%clk 0:02:58.4]} 2. Nf3 {[%clk 0:02:47.6]}
2... Nc6 {[%clk 0:02:58.4]} 3. Bb5 {[%clk 0:02:46.7]} 3... Nf6 {[%clk
0:02:58.2]} 4. O-O {[%clk 0:02:41.6]} 4... Nxe4 {[%clk 0:02:54.1]} 5. Re1 {[%clk
0:02:41.6]} 5... Nd6 {[%clk 0:02:53.4]} 6. Bxc6 {[%clk 0:02:41.7]} 6... dxc6
{[%clk 0:02:53.4]} 7. d4 {[%clk 0:02:42.1]} 7... e4 {[%clk 0:02:49.8]} 8. Ne5
{[%clk 0:02:42.6]} 8... Be7 {[%clk 0:02:44.5]} 9. Nc3 {[%clk 0:02:42.5]} 9...
O-O {[%clk 0:02:34.4]} 10. Nxe4 {[%clk 0:02:42]} 10... Nxe4 {[%clk 0:02:31.7]}
11. Rxe4 {[%clk 0:02:42.6]} 11... c5 {[%clk 0:02:28.8]} 12. Bf4 {[%clk
0:02:42.1]} 12... Bf5 {[%clk 0:02:23.8]} 13. Re3 {[%clk 0:02:33.6]} 13... cxd4
{[%clk 0:02:19.8]} 14. Rg3 {[%clk 0:02:30.9]} 14... Bf6 {[%clk 0:02:15.3]} 15.
Qf3 {[%clk 0:02:21.7]} 15... Re8 {[%clk 0:01:49.4]} 16. Ng4 {[%clk 0:01:22.9]}
16... Bxg4 {[%clk 0:01:27]} 17. Rxg4 {[%clk 0:01:22.2]} 17... Qe7 {[%clk
0:01:21.2]} 18. h4 {[%clk 0:01:21]} 18... Bxh4 {[%clk 0:00:55.5]} 19. Qxb7
{[%clk 0:00:57.7]} 19... h5 {[%clk 0:00:32]} 20. Rxh4 {[%clk 0:00:39.7]} 20...
Qxh4 {[%clk 0:00:32.9]} 21. g3 {[%clk 0:00:38.6]} 21... Qe7 {[%clk 0:00:31.5]}
22. Qf3 {[%clk 0:00:37.3]} 22... g6 {[%clk 0:00:30.8]} 23. Bh6 {[%clk
0:00:26.5]} 23... Kh7 {[%clk 0:00:30.1]} 24. Bf4 {[%clk 0:00:24.9]} 24... Qe4
{[%clk 0:00:28]} 25. Qb3 {[%clk 0:00:25.4]} 25... Qe6 {[%clk 0:00:22.9]} 26. Qb7
{[%clk 0:00:22.1]} 26... c5 {[%clk 0:00:20.7]} 27. Kh2 {[%clk 0:00:20.4]} 27...
Qe7 {[%clk 0:00:16.9]} 28. Qc6 {[%clk 0:00:20]} 28... Rac8 {[%clk 0:00:16.2]}
29. Qa6 {[%clk 0:00:20.5]} 29... Qe2 {[%clk 0:00:14.6]} 30. Qf6 {[%clk 0:00:19]}
30... Qxf2+ {[%clk 0:00:14.2]} 31. Kh3 {[%clk 0:00:19.7]} 31... Rf8 {[%clk
0:00:09.8]} 32. Rh1 {[%clk 0:00:17.8]} 32... Qf3 {[%clk 0:00:09.2]} 33. Qg5
{[%clk 0:00:15.8]} 33... Qxh1# {[%clk 0:00:06.1]} 0-1

[Event "*** SCC Grand Prix: Titled Tuesday Blitz"]
[Site "Chess.com"]
[Date "2020.07.07"]
[Round "9"]
[White "Aguiar94"]
[Black "Rish_97"]
[Result "0-1"]
[WhiteElo "2525"]
[BlackElo "2667"]
[TimeControl "180+1"]
[EndTime "11:46:28 PDT"]
[Termination "Rish_97 won by resignation"]

1. e4 {[%clk 0:03:00.9]} 1... c5 {[%clk 0:02:59.6]} 2. Nf3 {[%clk 0:03:01]} 2...
Nc6 {[%clk 0:03:00.1]} 3. Nc3 {[%clk 0:03:00.6]} 3... g6 {[%clk 0:02:59.8]} 4.
d4 {[%clk 0:02:59.4]} 4... cxd4 {[%clk 0:03:00.7]} 5. Nxd4 {[%clk 0:02:59.9]}
5... Bg7 {[%clk 0:03:01.4]} 6. Nb3 {[%clk 0:03:00.3]} 6... d6 {[%clk 0:03:00.9]}
7. Be2 {[%clk 0:02:59.4]} 7... Nf6 {[%clk 0:03:01.1]} 8. g4 {[%clk 0:02:59.7]}
8... O-O {[%clk 0:03:01.7]} 9. g5 {[%clk 0:02:59.6]} 9... Nd7 {[%clk 0:02:59.3]}
10. Be3 {[%clk 0:03:00]} 10... Nb6 {[%clk 0:02:53.4]} 11. Nd4 {[%clk 0:02:53.5]}
11... Bd7 {[%clk 0:02:34.2]} 12. h4 {[%clk 0:02:52.6]} 12... Rc8 {[%clk
0:02:31.1]} 13. h5 {[%clk 0:02:50.9]} 13... Ne5 {[%clk 0:02:31]} 14. f4 {[%clk
0:02:42.7]} 14... Nec4 {[%clk 0:02:11.9]} 15. Bc1 {[%clk 0:02:38]} 15... e5
{[%clk 0:02:11.1]} 16. fxe5 {[%clk 0:01:45.8]} 16... Nxe5 {[%clk 0:01:51.3]} 17.
Ndb5 {[%clk 0:01:06.4]} 17... Nec4 {[%clk 0:01:42]} 18. Nxa7 {[%clk 0:00:30.6]}
18... Rc5 {[%clk 0:01:41.6]} 19. a4 {[%clk 0:00:26.8]} 19... Rxg5 {[%clk
0:01:30.8]} 20. hxg6 {[%clk 0:00:18.1]} 20... hxg6 {[%clk 0:01:29.9]} 21. Nab5
{[%clk 0:00:16.7]} 21... Re8 {[%clk 0:01:20.4]} 22. Nxd6 {[%clk 0:00:13.5]}
22... Nxd6 {[%clk 0:00:29.9]} 23. Bxg5 {[%clk 0:00:11.1]} 23... Qxg5 {[%clk
0:00:28.6]} 24. Qxd6 {[%clk 0:00:11.4]} 24... Be5 {[%clk 0:00:17.6]} 25. Qxb6
{[%clk 0:00:10]} 25... Bg3+ {[%clk 0:00:17.6]} 26. Kd1 {[%clk 0:00:09.3]} 26...
Bg4 {[%clk 0:00:17]} 27. Nd5 {[%clk 0:00:06.7]} 27... Bxe2+ {[%clk 0:00:14.4]}
28. Kxe2 {[%clk 0:00:07.6]} 28... Rxe4+ {[%clk 0:00:15]} 29. Kd3 {[%clk
0:00:07.3]} 29... Qxd5+ {[%clk 0:00:15]} 30. Kc3 {[%clk 0:00:06.9]} 30... Be5+
{[%clk 0:00:15.2]} 0-1

[Event "*** SCC Grand Prix: Titled Tuesday Blitz"]
[Site "Chess.com"]
[Date "2020.07.07"]
[Round "9"]
[White "Karina_Ivanova"]
[Black "harlem4brew"]
[Result "0-1"]
[WhiteElo "2197"]
[BlackElo "2123"]
[TimeControl "180+1"]
[EndTime "11:46:28 PDT"]
[Termination "harlem4brew won by resignation"]

1. d4 {[%clk 0:03:00.4]} 1... Nf6 {[%clk 0:02:57.5]} 2. Nf3 {[%clk 0:02:59.7]}
2... e6 {[%clk 0:02:56]} 3. g3 {[%clk 0:03:00.6]} 3... b6 {[%clk 0:02:55.4]} 4.
Bg2 {[%clk 0:03:01.5]} 4... Bb7 {[%clk 0:02:53.5]} 5. O-O {[%clk 0:03:01.1]}
5... Be7 {[%clk 0:02:53.3]} 6. c4 {[%clk 0:02:59.4]} 6... O-O {[%clk 0:02:52.8]}
7. Nc3 {[%clk 0:02:57.9]} 7... d5 {[%clk 0:02:51.6]} 8. Ne5 {[%clk 0:02:47.9]}
8... Nbd7 {[%clk 0:02:50.5]} 9. Nxd7 {[%clk 0:02:44.1]} 9... Qxd7 {[%clk
0:02:49.5]} 10. Bf4 {[%clk 0:02:42.9]} 10... Qc8 {[%clk 0:02:45.3]} 11. cxd5
{[%clk 0:02:35]} 11... Nxd5 {[%clk 0:02:42.2]} 12. Nxd5 {[%clk 0:02:34.7]} 12...
Bxd5 {[%clk 0:02:38.6]} 13. Bxd5 {[%clk 0:02:31.6]} 13... exd5 {[%clk
0:02:38.3]} 14. Rc1 {[%clk 0:02:31.3]} 14... Bd8 {[%clk 0:02:37.1]} 15. Qc2
{[%clk 0:02:23.9]} 15... Qh3 {[%clk 0:02:34.6]} 16. Qc6 {[%clk 0:02:16.4]} 16...
Rc8 {[%clk 0:02:31.5]} 17. Qxd5 {[%clk 0:02:12.9]} 17... h5 {[%clk 0:02:21.6]}
18. Qg2 {[%clk 0:02:05]} 18... Qf5 {[%clk 0:02:19.3]} 19. e4 {[%clk 0:02:04.1]}
19... Qd7 {[%clk 0:02:17.6]} 20. Rfd1 {[%clk 0:01:54.2]} 20... g6 {[%clk
0:02:10.8]} 21. d5 {[%clk 0:01:50.3]} 21... Bf6 {[%clk 0:02:07.9]} 22. e5 {[%clk
0:01:48.5]} 22... Bg7 {[%clk 0:01:57.9]} 23. Qe4 {[%clk 0:01:43.6]} 23... Qg4
{[%clk 0:01:52.4]} 24. f3 {[%clk 0:01:40]} 24... Qh3 {[%clk 0:01:49.8]} 25. e6
{[%clk 0:01:36.4]} 25... Bxb2 {[%clk 0:01:42.5]} 26. e7 {[%clk 0:01:30.2]} 26...
Rfe8 {[%clk 0:01:39.8]} 27. Rxc7 {[%clk 0:01:29.5]} 27... Rxc7 {[%clk
0:01:38.3]} 28. Bxc7 {[%clk 0:01:29]} 28... Ba3 {[%clk 0:01:37.5]} 29. d6 {[%clk
0:01:28.3]} 29... Bc5+ {[%clk 0:01:36.9]} 30. Rd4 {[%clk 0:01:25.2]} 30... Kh7
{[%clk 0:01:31.2]} 31. Qd5 {[%clk 0:01:08.3]} 31... Kg7 {[%clk 0:01:16.1]} 32.
Qe5+ {[%clk 0:01:01.3]} 32... f6 {[%clk 0:01:15.5]} 33. Qe4 {[%clk 0:00:52.7]}
33... Kf7 {[%clk 0:01:10]} 34. a4 {[%clk 0:00:28.4]} 34... Qd7 {[%clk
0:00:50.7]} 35. Kg2 {[%clk 0:00:25.1]} 35... Bxd4 {[%clk 0:00:46.6]} 36. Qxd4
{[%clk 0:00:25]} 36... Rxe7 {[%clk 0:00:45.5]} 37. Qc4+ {[%clk 0:00:23.2]} 37...
Re6 {[%clk 0:00:45.2]} 38. Qb5 {[%clk 0:00:16.9]} 38... Qxb5 {[%clk 0:00:41.8]}
39. axb5 {[%clk 0:00:16.9]} 39... Ke8 {[%clk 0:00:42.7]} 40. Bb8 {[%clk
0:00:16.9]} 40... Kd7 {[%clk 0:00:43.4]} 41. Bxa7 {[%clk 0:00:14.9]} 41... Rxd6
{[%clk 0:00:43.5]} 42. f4 {[%clk 0:00:14.2]} 42... Kc7 {[%clk 0:00:41.6]} 0-1

[Event "*** SCC Grand Prix: Titled Tuesday Blitz"]
[Site "Chess.com"]
[Date "2020.07.07"]
[Round "9"]
[White "Firouzja2003"]
[Black "Oleksandr_Bortnyk"]
[Result "1-0"]
[WhiteElo "3112"]
[BlackElo "2931"]
[TimeControl "180+1"]
[EndTime "11:46:29 PDT"]
[Termination "Firouzja2003 won on time"]

1. d4 {[%clk 0:03:00.9]} 1... Nf6 {[%clk 0:02:55.5]} 2. Nf3 {[%clk 0:03:00.8]}
2... e6 {[%clk 0:02:52.5]} 3. c4 {[%clk 0:03:00.6]} 3... d5 {[%clk 0:02:52.7]}
4. Nc3 {[%clk 0:02:58.9]} 4... Nc6 {[%clk 0:02:50.8]} 5. cxd5 {[%clk 0:02:55]}
5... exd5 {[%clk 0:02:51.7]} 6. Bg5 {[%clk 0:02:53.5]} 6... Bb4 {[%clk
0:02:42.3]} 7. Qb3 {[%clk 0:02:34.6]} 7... a5 {[%clk 0:02:29.7]} 8. a3 {[%clk
0:02:30.6]} 8... a4 {[%clk 0:02:28.4]} 9. Qc2 {[%clk 0:02:30.2]} 9... Bxc3+
{[%clk 0:02:05.1]} 10. bxc3 {[%clk 0:02:30.1]} 10... h6 {[%clk 0:02:02.9]} 11.
Bf4 {[%clk 0:02:29.1]} 11... O-O {[%clk 0:01:59.3]} 12. e3 {[%clk 0:02:29]}
12... Ne4 {[%clk 0:01:51.9]} 13. Bd3 {[%clk 0:02:27.7]} 13... Re8 {[%clk
0:01:49.2]} 14. O-O {[%clk 0:02:21.4]} 14... Bg4 {[%clk 0:01:30.2]} 15. Ne5
{[%clk 0:02:18.1]} 15... Nxe5 {[%clk 0:01:29.6]} 16. Bxe5 {[%clk 0:02:16.9]}
16... Nd6 {[%clk 0:01:27.3]} 17. f3 {[%clk 0:02:14.4]} 17... Be6 {[%clk
0:01:25.6]} 18. e4 {[%clk 0:02:11]} 18... b6 {[%clk 0:01:16.4]} 19. Bg3 {[%clk
0:02:05.2]} 19... Qd7 {[%clk 0:00:59.7]} 20. Rae1 {[%clk 0:02:00.2]} 20... c5
{[%clk 0:00:56.3]} 21. e5 {[%clk 0:01:49.9]} 21... Nf5 {[%clk 0:00:32.1]} 22.
Bf2 {[%clk 0:01:49.8]} 22... c4 {[%clk 0:00:24.2]} 23. Be2 {[%clk 0:01:48.4]}
23... Ne7 {[%clk 0:00:19.8]} 24. g4 {[%clk 0:01:41.3]} 24... Ra5 {[%clk
0:00:19.8]} 25. Rb1 {[%clk 0:01:39.7]} 25... Rb8 {[%clk 0:00:15.1]} 26. h3
{[%clk 0:01:38.4]} 26... g5 {[%clk 0:00:08.8]} 27. Bg3 {[%clk 0:01:36.8]} 27...
Ng6 {[%clk 0:00:09.1]} 28. f4 {[%clk 0:01:36.6]} 28... gxf4 {[%clk 0:00:09.6]}
29. Bxf4 {[%clk 0:01:36.6]} 29... Qe7 {[%clk 0:00:09.6]} 30. Qd2 {[%clk
0:01:27.7]} 30... Nxf4 {[%clk 0:00:08.5]} 31. Rxf4 {[%clk 0:01:15.3]} 31... Qg5
{[%clk 0:00:09.4]} 32. Qe3 {[%clk 0:01:11.2]} 32... Kh8 {[%clk 0:00:07.2]} 33.
Qf2 {[%clk 0:01:05.3]} 33... Ra7 {[%clk 0:00:02.4]} 34. Rf1 {[%clk 0:00:52]}
34... Rg8 {[%clk 0:00:02.1]} 35. Kh2 {[%clk 0:00:51.4]} 35... Ra5 {[%clk
0:00:02]} 36. Bd1 {[%clk 0:00:49.5]} 36... Rb5 {[%clk 0:00:01.4]} 37. h4 {[%clk
0:00:45.5]} 37... Qg7 {[%clk 0:00:01.3]} 38. Rf6 {[%clk 0:00:43.9]} 38... Qh7
{[%clk 0:00:01.4]} 39. h5 {[%clk 0:00:39.2]} 39... Rg7 {[%clk 0:00:01.3]} 40.
Bxa4 {[%clk 0:00:27.2]} 1-0

[Event "*** SCC Grand Prix: Titled Tuesday Blitz"]
[Site "Chess.com"]
[Date "2020.07.07"]
[Round "9"]
[White "enzovsky"]
[Black "GMKrikor"]
[Result "1-0"]
[WhiteElo "2504"]
[BlackElo "2676"]
[TimeControl "180+1"]
[EndTime "11:46:32 PDT"]
[Termination "enzovsky won by resignation"]

1. e4 {[%clk 0:03:00.9]} 1... g6 {[%clk 0:02:59.8]} 2. d4 {[%clk 0:03:00.1]}
2... Bg7 {[%clk 0:03:00.7]} 3. Nc3 {[%clk 0:02:56.6]} 3... d6 {[%clk 0:03:01.6]}
4. f4 {[%clk 0:02:53.7]} 4... a6 {[%clk 0:03:00.9]} 5. Nf3 {[%clk 0:02:38.2]}
5... b5 {[%clk 0:03:01]} 6. Bd3 {[%clk 0:02:38.7]} 6... Nd7 {[%clk 0:03:00.7]}
7. e5 {[%clk 0:02:39.3]} 7... c5 {[%clk 0:03:00.6]} 8. Be4 {[%clk 0:02:38.3]}
8... Rb8 {[%clk 0:03:01.1]} 9. O-O {[%clk 0:02:36.8]} 9... cxd4 {[%clk
0:03:01.2]} 10. Nxd4 {[%clk 0:02:30.6]} 10... dxe5 {[%clk 0:03:00.7]} 11. Nc6
{[%clk 0:02:20]} 11... Qb6+ {[%clk 0:03:00.7]} 12. Kh1 {[%clk 0:02:20.1]} 12...
Ngf6 {[%clk 0:02:56.1]} 13. Nxb8 {[%clk 0:02:14.5]} 13... Qxb8 {[%clk
0:02:55.1]} 14. fxe5 {[%clk 0:02:14.3]} 14... Nxe5 {[%clk 0:02:51.4]} 15. Bf4
{[%clk 0:02:13.1]} 15... Nxe4 {[%clk 0:02:42.3]} 16. Nxe4 {[%clk 0:02:06.1]}
16... O-O {[%clk 0:02:42.4]} 17. Qe2 {[%clk 0:01:59.6]} 17... Qb6 {[%clk
0:02:13.3]} 18. h3 {[%clk 0:01:52.7]} 18... Qc6 {[%clk 0:02:00.9]} 19. Rae1
{[%clk 0:01:50.5]} 19... Bb7 {[%clk 0:01:48.3]} 20. b3 {[%clk 0:01:41.5]} 20...
Rc8 {[%clk 0:01:35]} 21. Ng5 {[%clk 0:01:39]} 21... Qxc2 {[%clk 0:01:04.7]} 22.
Bxe5 {[%clk 0:01:31.7]} 22... Bxe5 {[%clk 0:01:04.8]} 23. Nxf7 {[%clk
0:01:19.4]} 23... Bf6 {[%clk 0:00:49.6]} 24. Nd6 {[%clk 0:01:00.3]} 24... Qxe2
{[%clk 0:00:11.7]} 25. Rxe2 {[%clk 0:01:01.2]} 25... Rc7 {[%clk 0:00:09.8]} 26.
Nxb7 {[%clk 0:01:01.1]} 26... Rxb7 {[%clk 0:00:10.7]} 27. Rd1 {[%clk 0:01:00.3]}
27... a5 {[%clk 0:00:09.7]} 28. g4 {[%clk 0:00:57.5]} 28... a4 {[%clk
0:00:09.4]} 29. Rd3 {[%clk 0:00:57.5]} 29... a3 {[%clk 0:00:07.7]} 30. Rc2
{[%clk 0:00:54.8]} 30... Bb2 {[%clk 0:00:06.1]} 31. Kg2 {[%clk 0:00:53.6]} 31...
Rb6 {[%clk 0:00:06.2]} 32. Kg3 {[%clk 0:00:45]} 32... Re6 {[%clk 0:00:04.9]} 33.
Kf2 {[%clk 0:00:42.6]} 33... Re4 {[%clk 0:00:03.2]} 34. Re2 {[%clk 0:00:39.3]}
34... Rf4+ {[%clk 0:00:02.7]} 35. Kg2 {[%clk 0:00:38.3]} 35... e5 {[%clk
0:00:02.5]} 36. Rd7 {[%clk 0:00:34.2]} 36... e4 {[%clk 0:00:02.1]} 37. Re7
{[%clk 0:00:31.3]} 37... Bc3 {[%clk 0:00:01.6]} 38. R7xe4 {[%clk 0:00:29.4]}
38... Rf7 {[%clk 0:00:02.1]} 39. Re8+ {[%clk 0:00:28.7]} 39... Kg7 {[%clk
0:00:02.3]} 40. R8e7 {[%clk 0:00:29]} 1-0